[Event "DFMMLV 2019"]
[Site "Braunfels"]
[Date "2019.06.22"]
[Round "4.21"]
[White "Just, Anita"]
[Black "Hoefner, Nina"]
[Result "1-0"]
[ECO "B77"]
[WhiteElo "1866"]
[BlackElo "1557"]
[Annotator "NA"]
[PlyCount "106"]
[EventDate "2019.06.20"]
[EventType "team-tourn"]
[EventCountry "GER"]
[SourceTitle "playchess.com"]
[Source "ChessBase"]
[SourceQuality "1"]
[WhiteTeam "Sachsen"]
[BlackTeam "Hamburg"]
[TimeControl "40/5400+30:1800+30"]

1. e4 {[%emt 0:00:00]} c5 {[%emt 0:00:00]} 2. Nf3 {[%emt 0:00:00]} d6 {[%emt 0:00:00]} 3. d4 {[%emt 0:00:00]} cxd4 {[%emt 0:00:00]} 4. Nxd4 {[%emt 0:00:00]} Nf6 {[%emt 0:00:00]} 5. Nc3 {[%emt 0:00:02]} g6 {[%emt 0:00:04]} 6. Be3 {[%emt 0:04:58]} Bg7 {[%emt 0:01:42]} 7. f3 {[%emt 0:05:08]} O-O {[%emt 0:00:07]} 8. Qd2 {[%emt 0:00:14]} Nc6 {[%emt 0:00:08]} 9. Bc4 {[%emt 0:02:43]} Bd7 {[%emt 0:01:15]} 10. Bb3 {[%emt 0:02:07]} a6 {[%emt 0:08:44]} 11. O-O-O {[%emt 0:01:18]} Rc8 {[%emt 0:00:14]} 12. g4 {[%emt 0:05:38]} Nxd4 {[%emt 0:01:02]} 13. Bxd4 {[%emt 0:00:34]} b5 {[%emt 0:01:32]} 14. Nd5 {[%emt 0:10:42]} Nxd5 {[%emt 0:02:47]} 15. exd5 {[%emt 0:02:39]} a5 {[%emt 0:01:46]} 16. a3 {[%emt 0:05:07]} Qc7 {[%emt 0:03:08]} 17. Bxg7 {[%emt 0:04:12]} Kxg7 {[%emt 0:01:25]} 18. Rhe1 {[%emt 0:06:04]} Rfe8 {[%emt 0:01:42]} 19. Re3 {[%emt 0:01:56]} Rb8 {[%emt 0:04:49]} 20. Rde1 {[%emt 0:04:35]} Bc8 {[%emt 0:03:40]} 21. Qd4+ {[%emt 0:08:18]} Kg8 {[%emt 0:01:21]} 22. Rc3 {[%emt 0:01:17]} Qb6 {[%emt 0:03:24]} 23. Qxb6 {[%emt 0:00:57]} Rxb6 {[%emt 0:01:12]} 24. a4 {[%emt 0:01:15]} b4 {[%emt 0:01:58]} 25. Rc7 {[%emt 0:03:05]} Rb7 {[%emt 0:03:11]} 26. Rc6 {[%emt 0:00:45]} Rd7 {[%emt 0:03:36]} 27. Bc4 {[%emt 0:03:28]} Bb7 {[%emt 0:03:43]} 28. Bb5 {[%emt 0:03:59]} Bxc6 {[%emt 0:06:21]} 29. Bxc6 {[%emt 0:00:05]} Red8 {[%emt 0:00:51]} 30. Bxd7 {[%emt 0:00:24]} Rxd7 {[%emt 0:00:04]} 31. Kd2 {[%emt 0:02:34]} Kg7 {[%emt 0:00:58]} 32. Re4 {[%emt 0:00:42]} Rc7 {[%emt 0:01:16]} 33. Kd3 {[%emt 0:02:27]} Kf6 {[%emt 0:03:40]} 34. Rf4+ {[%emt 0:03:19]} Kg7 {[%emt 0:00:11]} 35. Rc4 {[%emt 0:01:08]} Ra7 {[%emt 0:02:35]} 36. Rc8 {[%emt 0:01:59]} e6 {[%emt 0:00:47]} 37. Kd4 {[%emt 0:03:24]} e5+ {[%emt 0:01:09]} 38. Kc4 {[%emt 0:02:21]} Rb7 {[%emt 0:09:07]} 39. Rc6 {[%emt 0:00:48]} Rd7 {[%emt 0:04:41]} 40. Kb5 {[%emt 0:00:34]} Ra7 {[%emt 0:06:35]} 41. Rxd6 {[%emt 0:31:31]} Kf8 {[%emt 0:30:16]} 42. Ra6 {[%emt 0:01:03]} Rd7 {[%emt 0:01:13]} 43. d6 {[%emt 0:03:58]} f5 {[%emt 0:04:16]} 44. gxf5 {[%emt 0:00:49]} gxf5 {[%emt 0:00:12]} 45. Kc6 {[%emt 0:00:44]} Ke8 {[%emt 0:02:27]} 46. Ra8+ {[%emt 0:00:22]} Rd8 {[%emt 0:00:02]} 47. d7+ {[%emt 0:02:58]} Ke7 {[%emt 0:00:21]} 48. Rxa5 {[%emt 0:00:32]} Ke6 {[%emt 0:01:13]} 49. Rd5 {[%emt 0:01:15]} e4 {[%emt 0:09:38]} 50. fxe4 {[%emt 0:00:29]} fxe4 {[%emt 0:00:11]} 51. Rd4 {[%emt 0:00:25]} Ke5 {[%emt 0:01:16]} 52. Rd1 {[%emt 0:00:21]} e3 {[%emt 0:01:20]} 53. Kc7 {[%emt 0:00:25]} Ke6 {[%emt 0:00:22]} 1-0

[Event "DFMMLV 2019"]
[Site "Braunfels"]
[Date "2019.06.22"]
[Round "4.22"]
[White "Harder, Daniella"]
[Black "Lowke, Kathrin"]
[Result "0-1"]
[ECO "A49"]
[WhiteElo "1630"]
[BlackElo "1887"]
[Annotator "NA"]
[PlyCount "48"]
[EventDate "2019.06.20"]
[EventType "team-tourn"]
[EventCountry "GER"]
[SourceTitle "playchess.com"]
[Source "ChessBase"]
[SourceQuality "1"]
[WhiteTeam "Hamburg"]
[BlackTeam "Sachsen"]
[TimeControl "40/5400+30:1800+30"]

1. d4 {[%emt 0:00:00]} Nf6 {[%emt 0:00:00]} 2. Nf3 {[%emt 0:00:00]} g6 {[%emt 0:00:00]} 3. g3 {[%emt 0:00:25]} Bg7 {[%emt 0:00:20]} 4. Bg2 {[%emt 0:00:06]} d6 {[%emt 0:00:04]} 5. Bd2 {[%emt 0:03:59]} O-O {[%emt 0:00:35]} 6. Qc1 {[%emt 0:00:09]} Nc6 {[%emt 0:02:04]} 7. Bh6 {[%emt 0:00:32]} Bf5 {[%emt 0:00:38]} 8. Bxg7 {[%emt 0:00:35]} Kxg7 {[%emt 0:00:05]} 9. c3 {[%emt 0:01:58]} Qd7 {[%emt 0:00:57]} 10. h3 {[%emt 0:05:19]} e5 {[%emt 0:05:13]} 11. g4 {[%emt 0:14:50]} Be6 {[%emt 0:01:47]} 12. Qg5 {[%emt 0:08:25]} Bd5 {[%emt 0:07:44]} 13. dxe5 {[%emt 0:12:32]} Nxe5 {[%emt 0:01:28]} 14. O-O {[%emt 0:00:32]} Rae8 {[%emt 0:02:34]} 15. Nbd2 {[%emt 0:03:08]} Nxf3+ {[%emt 0:02:04]} 16. Bxf3 {[%emt 0:00:42]} Bxf3 {[%emt 0:00:18]} 17. exf3 {[%emt 0:00:19]} Re5 {[%emt 0:01:54]} 18. Qf4 {[%emt 0:01:21]} Rfe8 {[%emt 0:02:21]} 19. Qd4 {[%emt 0:03:25]} Rd5 {[%emt 0:02:09]} 20. Qf4 {[%emt 0:00:49]} g5 {[%emt 0:00:24]} 21. Qb4 {[%emt 0:03:08]} c5 {[%emt 0:02:48]} 22. Qa3 {[%emt 0:07:20]} Rxd2 {[%emt 0:01:01]} 23. Qxa7 {[%emt 0:00:59]} Qc6 {[%emt 0:00:30]} 24. Kg2 {[%emt 0:03:38]} Rd3 {[%emt 0:01:10]} 0-1

[Event "DFMMLV 2019"]
[Site "Braunfels"]
[Date "2019.06.22"]
[Round "4.23"]
[White "von Keyserlingk, Chanda"]
[Black "Reich, Kristina"]
[Result "1-0"]
[ECO "D10"]
[WhiteElo "1702"]
[BlackElo "1544"]
[Annotator "NA"]
[PlyCount "79"]
[EventDate "2019.06.20"]
[EventType "team-tourn"]
[EventCountry "GER"]
[SourceTitle "playchess.com"]
[Source "ChessBase"]
[SourceQuality "1"]
[WhiteTeam "Sachsen"]
[BlackTeam "Hamburg"]
[TimeControl "40/5400+30:1800+30"]

1. d4 {[%emt 0:00:00]} d5 {[%emt 0:00:00]} 2. c4 {[%emt 0:00:00]} c6 {[%emt 0:00:00]} 3. Nc3 {[%emt 0:00:46]} e6 {[%emt 0:00:00]} 4. e3 {[%emt 0:01:59]} f5 {[%emt 0:00:13]} 5. Nf3 {[%emt 0:01:45]} Nf6 {[%emt 0:01:58]} 6. Bd3 {[%emt 0:06:44]} Bd6 {[%emt 0:01:42]} 7. Ne5 {[%emt 0:01:20]} O-O {[%emt 0:02:21]} 8. f4 {[%emt 0:01:33]} Ne4 {[%emt 0:04:39]} 9. g3 {[%emt 0:10:56]} Nd7 {[%emt 0:05:04]} 10. Qc2 {[%emt 0:05:13]} Ndf6 {[%emt 0:02:52]} 11. Bd2 {[%emt 0:02:26]} Bd7 {[%emt 0:05:20]} 12. O-O {[%emt 0:04:30]} Be8 {[%emt 0:02:47]} 13. Be2 {[%emt 0:01:03]} Rc8 {[%emt 0:08:40]} 14. Qd1 {[%emt 0:04:47]} Rc7 {[%emt 0:03:19]} 15. c5 {[%emt 0:02:52]} Be7 {[%emt 0:02:07]} 16. Nxe4 {[%emt 0:00:31]} Nxe4 {[%emt 0:00:35]} 17. Ba5 {[%emt 0:00:16]} Rf6 {[%emt 0:03:23]} 18. Bxc7 {[%emt 0:00:20]} Qxc7 {[%emt 0:00:13]} 19. Qc2 {[%emt 0:04:14]} Rh6 {[%emt 0:03:43]} 20. Bf3 {[%emt 0:04:07]} Bh5 {[%emt 0:10:16]} 21. Bxe4 {[%emt 0:03:42]} dxe4 {[%emt 0:01:43]} 22. Rf2 {[%emt 0:01:41]} Qd8 {[%emt 0:04:33]} 23. Qb3 {[%emt 0:03:01]} Qc8 {[%emt 0:03:43]} 24. Re1 {[%emt 0:04:09]} Bf6 {[%emt 0:04:06]} 25. Nc4 {[%emt 0:01:22]} Qc7 {[%emt 0:03:54]} 26. Nd6 {[%emt 0:01:25]} Bf7 {[%emt 0:01:34]} 27. Qxb7 {[%emt 0:00:57]} Qxb7 {[%emt 0:03:16]} 28. Nxb7 {[%emt 0:00:17]} Rg6 {[%emt 0:01:52]} 29. Nd6 {[%emt 0:01:15]} Rg4 {[%emt 0:02:28]} 30. Rg2 {[%emt 0:00:34]} Bh5 {[%emt 0:01:40]} 31. Rc1 {[%emt 0:00:48]} Rg6 {[%emt 0:05:38]} 32. Rc3 {[%emt 0:01:05]} Bf3 {[%emt 0:00:58]} 33. Rf2 {[%emt 0:01:34]} h5 {[%emt 0:01:28]} 34. Rb3 {[%emt 0:00:39]} h4 {[%emt 0:01:35]} 35. Rb8+ {[%emt 0:00:07]} Kh7 {[%emt 0:00:34]} 36. Nf7 {[%emt 0:00:25]} Rg4 {[%emt 0:02:01]} 37. Kf1 {[%emt 0:02:20]} hxg3 {[%emt 0:01:51]} 38. hxg3 {[%emt 0:00:19]} Rxg3 {[%emt 0:00:57]} 39. Rh2+ {[%emt 0:00:08]} Kg6 {[%emt 0:00:42]} 40. Nh8# 1-0

[Event "DFMMLV 2019"]
[Site "Braunfels"]
[Date "2019.06.22"]
[Round "4.24"]
[White "Hoelzer, Jeanette"]
[Black "Gottschall, Ina"]
[Result "1/2-1/2"]
[ECO "B06"]
[WhiteElo "1662"]
[BlackElo "1637"]
[Annotator "NA"]
[PlyCount "37"]
[EventDate "2019.06.20"]
[EventType "team-tourn"]
[EventCountry "GER"]
[SourceTitle "playchess.com"]
[Source "ChessBase"]
[SourceQuality "1"]
[WhiteTeam "Hamburg"]
[BlackTeam "Sachsen"]
[TimeControl "40/5400+30:1800+30"]

1. e4 {[%emt 0:00:00]} g6 {[%emt 0:00:00]} 2. d4 {[%emt 0:00:00]} Bg7 {[%emt 0:00:00]} 3. Nc3 {[%emt 0:00:00]} d6 {[%emt 0:00:00]} 4. Be3 {[%emt 0:00:00]} Nf6 {[%emt 0:00:12]} 5. f3 {[%emt 0:00:00]} c6 {[%emt 0:00:32]} 6. Qd2 {[%emt 0:00:14]} b5 {[%emt 0:00:21]} 7. O-O-O {[%emt 0:02:01]} b4 {[%emt 0:00:53]} 8. Nce2 {[%emt 0:00:44]} a5 {[%emt 0:00:21]} 9. Bh6 {[%emt 0:02:51]} O-O {[%emt 0:00:15]} 10. h4 {[%emt 0:02:56]} e5 {[%emt 0:21:21]} 11. Bxg7 {[%emt 0:03:15]} Kxg7 {[%emt 0:00:12]} 12. dxe5 {[%emt 0:00:59]} Ng8 13. Qxd6 {[%emt 0:07:02]} Qxd6 {[%emt 0:04:14]} 14. exd6 {[%emt 0:01:30]} c5 {[%emt 0:05:19]} 15. Nf4 {[%emt 0:04:03]} Nd7 {[%emt 0:12:40]} 16. Nd3 {[%emt 0:13:35]} c4 {[%emt 0:04:38]} 17. Nf2 {[%emt 0:05:37]} Ba6 {[%emt 0:04:35]} 18. Ne2 {[%emt 0:07:13]} Rfb8 {[%emt 0:19:03]} 19. Kb1 {[%emt 0:03:55]} 1/2-1/2

[Event "DFMMLV 2019"]
[Site "Braunfels"]
[Date "2019.06.22"]
[Round "4.25"]
[White "Mucha, Annegret"]
[Black "Malachowski, Margrit"]
[Result "1/2-1/2"]
[ECO "A00"]
[WhiteElo "2050"]
[BlackElo "2080"]
[Annotator "NA"]
[PlyCount "74"]
[EventDate "2019.06.20"]
[EventType "team-tourn"]
[EventCountry "GER"]
[SourceTitle "playchess.com"]
[Source "ChessBase"]
[SourceQuality "1"]
[WhiteTeam "Thueringen"]
[BlackTeam "Baden"]
[TimeControl "40/5400+30:1800+30"]

1. Nc3 {[%emt 0:00:00]} d5 {[%emt 0:00:52]} 2. e4 {[%emt 0:00:01]} c6 {[%emt 0:00:46]} 3. f4 {[%emt 0:00:06]} e6 {[%emt 0:10:56]} 4. Nf3 {[%emt 0:07:08]} dxe4 {[%emt 0:01:27]} 5. Nxe4 {[%emt 0:00:08]} Nf6 {[%emt 0:00:06]} 6. Nf2 {[%emt 0:01:02]} Bc5 {[%emt 0:01:06]} 7. d4 {[%emt 0:06:17]} Bb6 {[%emt 0:00:31]} 8. c3 {[%emt 0:00:22]} O-O {[%emt 0:12:25]} 9. Bc4 {[%emt 0:08:42]} c5 {[%emt 0:02:43]} 10. dxc5 {[%emt 0:05:15]} Qxd1+ {[%emt 0:00:22]} 11. Nxd1 {[%emt 0:00:39]} Bxc5 {[%emt 0:00:10]} 12. Be3 {[%emt 0:00:31]} Nbd7 {[%emt 0:01:34]} 13. O-O {[%emt 0:08:25]} b6 {[%emt 0:06:07]} 14. Bxc5 {[%emt 0:04:56]} Nxc5 {[%emt 0:00:35]} 15. Ne5 {[%emt 0:00:31]} Bb7 {[%emt 0:00:43]} 16. Ne3 {[%emt 0:01:58]} Rad8 {[%emt 0:04:23]} 17. Rad1 {[%emt 0:05:18]} g6 {[%emt 0:05:16]} 18. g4 {[%emt 0:02:15]} Nd5 {[%emt 0:05:31]} 19. Nxd5 {[%emt 0:01:59]} exd5 {[%emt 0:03:27]} 20. Bb5 {[%emt 0:01:35]} a6 {[%emt 0:12:40]} 21. Bc6 {[%emt 0:01:17]} Rd6 {[%emt 0:06:46]} 22. Bxb7 {[%emt 0:07:56]} Nxb7 {[%emt 0:00:21]} 23. Rd4 {[%emt 0:00:49]} f6 {[%emt 0:01:49]} 24. Nd3 {[%emt 0:07:57]} a5 {[%emt 0:02:03]} 25. g5 {[%emt 0:02:46]} Nc5 {[%emt 0:04:27]} 26. Nxc5 {[%emt 0:06:07]} bxc5 {[%emt 0:01:00]} 27. Ra4 {[%emt 0:03:15]} Ra8 {[%emt 0:03:28]} 28. Rd1 {[%emt 0:00:20]} Kf7 {[%emt 0:01:45]} 29. b4 {[%emt 0:01:48]} cxb4 {[%emt 0:02:04]} 30. cxb4 {[%emt 0:00:06]} d4 {[%emt 0:00:09]} 31. bxa5 {[%emt 0:00:26]} d3 {[%emt 0:00:06]} 32. Kf2 {[%emt 0:03:27]} fxg5 {[%emt 0:01:53]} 33. fxg5 {[%emt 0:00:41]} d2 {[%emt 0:01:33]} 34. a6 {[%emt 0:02:24]} Raxa6 {[%emt 0:01:02]} 35. Rxa6 {[%emt 0:00:05]} Rxa6 {[%emt 0:00:08]} 36. Rxd2 {[%emt 0:00:03]} Ke6 {[%emt 0:00:38]} 37. Kg3 Ke5 1/2-1/2

[Event "DFMMLV 2019"]
[Site "Braunfels"]
[Date "2019.06.22"]
[Round "4.26"]
[White "Zhang, Fan"]
[Black "Skibbe, Diana"]
[Result "1-0"]
[ECO "A80"]
[WhiteElo "2069"]
[BlackElo "1986"]
[Annotator "NA"]
[PlyCount "55"]
[EventDate "2019.06.20"]
[EventType "team-tourn"]
[EventCountry "GER"]
[SourceTitle "playchess.com"]
[Source "ChessBase"]
[SourceQuality "1"]
[WhiteTeam "Baden"]
[BlackTeam "Thueringen"]
[TimeControl "40/5400+30:1800+30"]

1. d4 {[%emt 0:00:33]} f5 {[%emt 0:00:00]} 2. Bg5 {[%emt 0:03:38]} h6 {[%emt 0:00:13]} 3. Bh4 {[%emt 0:01:25]} g5 {[%emt 0:00:03]} 4. e4 {[%emt 0:04:52]} Bg7 {[%emt 0:08:24]} 5. Qh5+ {[%emt 0:06:16]} Kf8 {[%emt 0:00:04]} 6. Bg3 {[%emt 0:11:03]} Nf6 {[%emt 0:04:07]} 7. Qf3 {[%emt 0:00:45]} fxe4 {[%emt 0:00:09]} 8. Qb3 {[%emt 0:01:24]} d5 {[%emt 0:09:16]} 9. f3 {[%emt 0:02:02]} Nc6 {[%emt 0:00:20]} 10. c3 {[%emt 0:01:47]} Na5 {[%emt 0:08:25]} 11. Qa4 {[%emt 0:01:20]} c6 {[%emt 0:01:49]} 12. Nd2 {[%emt 0:00:47]} b5 {[%emt 0:00:35]} 13. Qc2 {[%emt 0:09:17]} Bf5 {[%emt 0:00:55]} 14. fxe4 {[%emt 0:01:30]} dxe4 {[%emt 0:00:36]} 15. Ndf3 {[%emt 0:05:26]} Qd5 {[%emt 0:11:07]} 16. Ne5 {[%emt 0:01:40]} Nd7 {[%emt 0:04:15]} 17. Qf2 {[%emt 0:01:03]} e6 {[%emt 0:01:21]} 18. Ng6+ {[%emt 0:00:44]} Kf7 {[%emt 0:02:06]} 19. Nxh8+ {[%emt 0:00:12]} Bxh8 {[%emt 0:00:08]} 20. Be2 {[%emt 0:09:04]} Kg8 {[%emt 0:00:22]} 21. h4 {[%emt 0:03:35]} g4 {[%emt 0:00:32]} 22. Qf4 {[%emt 0:01:26]} Nf6 {[%emt 0:03:34]} 23. Qxh6 {[%emt 0:01:43]} Bg7 {[%emt 0:02:58]} 24. Qg5 {[%emt 0:01:48]} Nh7 {[%emt 0:07:14]} 25. Qf4 {[%emt 0:04:20]} Nf6 {[%emt 0:01:31]} 26. h5 {[%emt 0:00:51]} Kh7 {[%emt 0:00:25]} 27. h6 {[%emt 0:01:21]} Bh8 {[%emt 0:00:10]} 28. Qc7+ 1-0

[Event "DFMMLV 2019"]
[Site "Braunfels"]
[Date "2019.06.22"]
[Round "4.28"]
[White "Schneider, Birgit"]
[Black "Jacke, Corinna"]
[Result "1/2-1/2"]
[ECO "C02"]
[WhiteElo "1874"]
[BlackElo "2001"]
[Annotator "NA"]
[PlyCount "47"]
[EventDate "2019.06.20"]
[EventType "team-tourn"]
[EventCountry "GER"]
[SourceTitle "playchess.com"]
[Source "ChessBase"]
[SourceQuality "1"]
[WhiteTeam "Baden"]
[BlackTeam "Thueringen"]
[TimeControl "40/5400+30:1800+30"]

1. e4 {[%emt 0:00:00]} e6 {[%emt 0:00:00]} 2. d4 {[%emt 0:00:00]} d5 {[%emt 0:00:00]} 3. e5 {[%emt 0:00:07]} c5 {[%emt 0:00:00]} 4. c3 {[%emt 0:00:05]} Nc6 {[%emt 0:00:00]} 5. Nf3 {[%emt 0:00:07]} Qc7 {[%emt 0:00:40]} 6. a3 {[%emt 0:05:38]} c4 {[%emt 0:13:53]} 7. b3 {[%emt 0:16:33]} b5 {[%emt 0:04:18]} 8. bxc4 {[%emt 0:08:28]} bxc4 {[%emt 0:00:07]} 9. Be2 {[%emt 0:05:52]} Bd7 {[%emt 0:06:30]} 10. O-O {[%emt 0:04:38]} Na5 {[%emt 0:03:21]} 11. Nbd2 {[%emt 0:08:26]} Rb8 {[%emt 0:02:18]} 12. a4 {[%emt 0:04:59]} f6 {[%emt 0:07:25]} 13. Ba3 {[%emt 0:04:16]} Nb3 {[%emt 0:05:10]} 14. Bxf8 {[%emt 0:03:53]} Kxf8 {[%emt 0:00:28]} 15. Ra3 {[%emt 0:03:38]} Kf7 {[%emt 0:09:47]} 16. Nxb3 {[%emt 0:03:02]} cxb3 {[%emt 0:02:34]} 17. Bb5 {[%emt 0:05:40]} Bxb5 {[%emt 0:03:05]} 18. axb5 {[%emt 0:00:18]} Rxb5 {[%emt 0:00:18]} 19. Rxb3 {[%emt 0:02:05]} Rxb3 {[%emt 0:00:38]} 20. Qxb3 {[%emt 0:00:06]} Ne7 {[%emt 0:00:06]} 21. exf6 {[%emt 0:01:31]} gxf6 {[%emt 0:01:50]} 22. Re1 {[%emt 0:05:29]} h5 {[%emt 0:09:31]} 23. Qb5 {[%emt 0:04:20]} Qc6 {[%emt 0:07:39]} 24. Qa5 {[%emt 0:01:54]} 1/2-1/2

[Event "DFMMLV 2019"]
[Site "Braunfels"]
[Date "2019.06.22"]
[Round "4.29"]
[White "Dietrich, Mareike"]
[Black "Boettger, Sina Fleur"]
[Result "1/2-1/2"]
[ECO "B38"]
[WhiteElo "1706"]
[BlackElo "1744"]
[Annotator "NA"]
[PlyCount "82"]
[EventDate "2019.06.20"]
[EventType "team-tourn"]
[EventCountry "GER"]
[SourceTitle "playchess.com"]
[Source "ChessBase"]
[SourceQuality "1"]
[WhiteTeam "Thueringen"]
[BlackTeam "Baden"]
[TimeControl "40/5400+30:1800+30"]

1. e4 {[%emt 0:00:00]} c5 {[%emt 0:00:00]} 2. Nf3 {[%emt 0:00:00]} Nc6 {[%emt 0:00:00]} 3. d4 {[%emt 0:00:00]} cxd4 {[%emt 0:00:00]} 4. Nxd4 {[%emt 0:00:00]} g6 {[%emt 0:00:00]} 5. c4 {[%emt 0:00:00]} Bg7 {[%emt 0:00:00]} 6. Be3 {[%emt 0:00:00]} d6 {[%emt 0:00:31]} 7. Be2 {[%emt 0:00:48]} Nf6 {[%emt 0:00:05]} 8. Nc3 {[%emt 0:00:02]} O-O {[%emt 0:00:18]} 9. O-O {[%emt 0:00:04]} Bd7 {[%emt 0:02:16]} 10. f3 {[%emt 0:01:13]} Nxd4 {[%emt 0:09:13]} 11. Bxd4 {[%emt 0:00:05]} Nh5 {[%emt 0:00:28]} 12. Bxg7 {[%emt 0:06:02]} Kxg7 {[%emt 0:00:08]} 13. Qd2 {[%emt 0:00:06]} Nf6 {[%emt 0:02:43]} 14. Kh1 {[%emt 0:02:46]} Bc6 {[%emt 0:15:07]} 15. b4 {[%emt 0:01:47]} b6 {[%emt 0:01:11]} 16. Rfd1 {[%emt 0:02:55]} Rc8 {[%emt 0:03:01]} 17. Qd4 {[%emt 0:12:52]} Re8 {[%emt 0:18:59]} 18. Rac1 {[%emt 0:04:24]} Bb7 {[%emt 0:06:22]} 19. Nd5 {[%emt 0:04:08]} e5 {[%emt 0:09:26]} 20. Qd2 {[%emt 0:02:07]} Nxd5 {[%emt 0:01:15]} 21. cxd5 {[%emt 0:02:48]} Re7 {[%emt 0:03:51]} 22. Qg5 {[%emt 0:10:40]} f6 {[%emt 0:00:30]} 23. Qd2 {[%emt 0:01:00]} Rec7 {[%emt 0:00:16]} 24. Bb5 {[%emt 0:02:00]} a6 {[%emt 0:12:03]} 25. Bd3 {[%emt 0:02:02]} Rxc1 {[%emt 0:00:16]} 26. Rxc1 {[%emt 0:00:01]} Rc7 {[%emt 0:00:35]} 27. Rxc7+ {[%emt 0:01:10]} Qxc7 {[%emt 0:00:01]} 28. Qc2 {[%emt 0:00:07]} Qxc2 {[%emt 0:01:11]} 29. Bxc2 {[%emt 0:00:04]} Kf7 {[%emt 0:02:31]} 30. Kg1 {[%emt 0:00:44]} Bc8 {[%emt 0:00:34]} 31. Kf2 {[%emt 0:05:44]} f5 {[%emt 0:04:21]} 32. g3 {[%emt 0:01:06]} Kf6 {[%emt 0:00:53]} 33. Ke3 {[%emt 0:01:11]} fxe4 {[%emt 0:01:08]} 34. fxe4 {[%emt 0:03:54]} Kg5 {[%emt 0:00:48]} 35. Bd1 {[%emt 0:04:54]} Bg4 {[%emt 0:02:03]} 36. Bc2 {[%emt 0:02:13]} Bh3 {[%emt 0:00:44]} 37. Bd3 {[%emt 0:00:36]} b5 {[%emt 0:00:40]} 38. Be2 {[%emt 0:05:50]} h6 {[%emt 0:01:27]} 39. Kf2 {[%emt 0:04:12]} h5 {[%emt 0:02:10]} 40. Ke3 {[%emt 0:01:10]} h4 {[%emt 0:01:03]} 41. Kf2 {[%emt 0:32:25]} Bd7 {[%emt 0:04:11]} 1/2-1/2

[Event "DFMMLV 2019"]
[Site "Braunfels"]
[Date "2019.06.22"]
[Round "4.30"]
[White "Grining, Maria"]
[Black "Schulz, Theresa Charlotte"]
[Result "1-0"]
[ECO "A80"]
[WhiteElo "1709"]
[BlackElo "1603"]
[Annotator "NA"]
[PlyCount "43"]
[EventDate "2019.06.20"]
[EventType "team-tourn"]
[EventCountry "GER"]
[SourceTitle "playchess.com"]
[Source "ChessBase"]
[SourceQuality "1"]
[WhiteTeam "Baden"]
[BlackTeam "Thueringen"]
[TimeControl "40/5400+30:1800+30"]

1. d4 {[%emt 0:00:00]} f5 {[%emt 0:00:00]} 2. Nf3 {[%emt 0:00:10]} Nf6 {[%emt 0:00:00]} 3. Bg5 {[%emt 0:00:15]} Ne4 {[%emt 0:00:22]} 4. Bf4 {[%emt 0:01:34]} g6 {[%emt 0:01:15]} 5. Be5 {[%emt 0:00:34]} Nf6 {[%emt 0:00:32]} 6. Bxf6 {[%emt 0:00:20]} exf6 {[%emt 0:00:06]} 7. e3 {[%emt 0:01:10]} b6 {[%emt 0:02:13]} 8. Bc4 {[%emt 0:01:31]} Ba6 {[%emt 0:00:58]} 9. Qe2 {[%emt 0:01:48]} Bxc4 {[%emt 0:01:48]} 10. Qxc4 {[%emt 0:00:05]} Nc6 {[%emt 0:01:30]} 11. Nc3 {[%emt 0:02:41]} Na5 {[%emt 0:07:05]} 12. Qd3 {[%emt 0:06:41]} Nb7 {[%emt 0:01:21]} 13. O-O {[%emt 0:03:21]} c6 {[%emt 0:04:33]} 14. e4 {[%emt 0:08:25]} f4 {[%emt 0:05:09]} 15. e5 {[%emt 0:08:03]} f5 {[%emt 0:07:26]} 16. d5 {[%emt 0:05:02]} Qe7 {[%emt 0:03:40]} 17. dxc6 {[%emt 0:02:38]} dxc6 {[%emt 0:02:52]} 18. Qc4 {[%emt 0:00:46]} Qc7 {[%emt 0:07:32]} 19. Nd5 {[%emt 0:05:18]} Qc8 {[%emt 0:07:51]} 20. Nf6+ {[%emt 0:00:23]} Ke7 {[%emt 0:00:22]} 21. Ng5 {[%emt 0:01:42]} Nd8 {[%emt 0:01:37]} 22. Rad1 {[%emt 0:00:32]} 1-0

[Event "DFMMLV 2019"]
[Site "Braunfels"]
[Date "2019.06.22"]
[Round "4.31"]
[White "Neumann, Tina"]
[Black "Doll, Rebecca"]
[Result "1-0"]
[ECO "C44"]
[WhiteElo "1525"]
[BlackElo "1678"]
[Annotator "NA"]
[PlyCount "65"]
[EventDate "2019.06.20"]
[EventType "team-tourn"]
[EventCountry "GER"]
[SourceTitle "playchess.com"]
[Source "ChessBase"]
[SourceQuality "1"]
[WhiteTeam "Thueringen"]
[BlackTeam "Baden"]
[TimeControl "40/5400+30:1800+30"]

1. e4 {[%emt 0:00:00]} e5 {[%emt 0:00:00]} 2. d4 {[%emt 0:00:24]} exd4 {[%emt 0:00:25]} 3. c3 {[%emt 0:00:54]} dxc3 {[%emt 0:07:23]} 4. Bc4 {[%emt 0:01:17]} Nf6 {[%emt 0:05:36]} 5. Nxc3 {[%emt 0:08:31]} Nc6 {[%emt 0:04:11]} 6. Nf3 {[%emt 0:06:40]} Bb4 {[%emt 0:06:22]} 7. e5 {[%emt 0:27:28]} Bxc3+ {[%emt 0:09:57]} 8. bxc3 {[%emt 0:00:10]} Qe7 {[%emt 0:02:20]} 9. O-O {[%emt 0:12:01]} Ng4 {[%emt 0:07:30]} 10. a4 {[%emt 0:19:44]} Ngxe5 {[%emt 0:05:32]} 11. Nxe5 {[%emt 0:02:23]} Nxe5 {[%emt 0:00:39]} 12. Re1 {[%emt 0:01:55]} O-O {[%emt 0:01:41]} 13. Ba3 {[%emt 0:01:34]} d6 {[%emt 0:01:40]} 14. f4 {[%emt 0:00:57]} Qh4 {[%emt 0:00:47]} 15. g3 {[%emt 0:05:38]} Qg4 {[%emt 0:08:40]} 16. Be2 {[%emt 0:00:28]} Qf5 {[%emt 0:00:53]} 17. fxe5 {[%emt 0:00:27]} Qxe5 {[%emt 0:00:12]} 18. Qd2 {[%emt 0:02:38]} Qa5 {[%emt 0:02:50]} 19. Qd4 {[%emt 0:03:05]} f5 {[%emt 0:03:33]} 20. Bc4+ {[%emt 0:00:57]} Kh8 {[%emt 0:00:11]} 21. Re7 {[%emt 0:00:59]} Qb6 {[%emt 0:01:48]} 22. Rae1 {[%emt 0:01:30]} h6 {[%emt 0:04:16]} 23. Kg2 {[%emt 0:00:41]} Qxd4 {[%emt 0:00:28]} 24. cxd4 {[%emt 0:00:01]} c6 {[%emt 0:01:57]} 25. Bxd6 {[%emt 0:00:22]} b6 {[%emt 0:01:59]} 26. Be5 {[%emt 0:00:56]} b5 {[%emt 0:02:28]} 27. Bxg7+ {[%emt 0:00:33]} Kh7 {[%emt 0:00:11]} 28. Bxf8+ {[%emt 0:00:11]} Kg6 {[%emt 0:00:15]} 29. axb5 {[%emt 0:00:47]} cxb5 {[%emt 0:00:27]} 30. Bxb5 {[%emt 0:01:00]} a5 {[%emt 0:00:29]} 31. Be8+ {[%emt 0:00:27]} Kg5 {[%emt 0:00:18]} 32. h4+ {[%emt 0:00:31]} Kg4 {[%emt 0:00:10]} 33. Rg7# {[%emt 0:00:11]} 1-0